[Event "Titled Tuesday Blitz May 11 2021"]
[White "Bluebaum, Matthias"]
[Black "Arias, Juan Cruz"]
[WhiteFideId "24651516"]
[BlackFideId "118540"]
[WhiteElo "2685"]
[BlackElo "2083"]
[Result "1-0"]
[Round "02"]
[TimeControl "180+1"]
[Date "2021.05.11"]
[WhiteClock "0:01:12"]
[BlackClock "0:00:01"]

1. d4 {[%clk 0:03:00]}  e6 {[%clk 0:02:57]} 2. c4 {[%clk 0:03:01]}  Nf6 {[%clk 0:02:57]} 3. Nc3 {[%clk 0:03:01]}  d5 {[%clk 0:02:55]} 4. cxd5 {[%clk 0:03:01]}  exd5 {[%clk 0:02:56]} 5. Bg5 {[%clk 0:03:01]}  Be7 {[%clk 0:02:56]} 6. e3 {[%clk 0:03:01]}  c6 {[%clk 0:02:56]} 7. Bd3 {[%clk 0:03:00]}  Nbd7 {[%clk 0:02:56]} 8. h3 {[%clk 0:03:01]}  O-O {[%clk 0:02:48]} 9. Bf4 {[%clk 0:03:00]}  Re8 {[%clk 0:02:41]} 10. Nf3 {[%clk 0:02:58]}  Nf8 {[%clk 0:02:37]} 11. Qc2 {[%clk 0:02:58]}  Ne6 {[%clk 0:02:36]} 12. Bh2 {[%clk 0:02:55]}  g6 {[%clk 0:02:14]} 13. g4 {[%clk 0:02:44]}  Ng7 {[%clk 0:02:14]} 14. O-O-O {[%clk 0:02:41]}  b5 {[%clk 0:02:12]} 15. Ne5 {[%clk 0:02:40]}  Qb6 {[%clk 0:02:02]} 16. Kb1 {[%clk 0:02:38]}  a5 {[%clk 0:02:00]} 17. Rc1 {[%clk 0:02:35]}  Bb7 {[%clk 0:01:38]} 18. g5 {[%clk 0:02:28]}  Nfh5 {[%clk 0:01:35]} 19. h4 {[%clk 0:02:28]}  a4 {[%clk 0:01:34]} 20. Ne2 {[%clk 0:02:21]}  Rec8 {[%clk 0:01:23]} 21. Nd7 {[%clk 0:02:19]}  Qd8 {[%clk 0:01:22]} 22. Nc5 {[%clk 0:02:19]}  Ra7 {[%clk 0:01:15]} 23. Qd2 {[%clk 0:02:06]}  Bd6 {[%clk 0:01:09]} 24. Bxd6 {[%clk 0:02:01]}  Qxd6 {[%clk 0:01:08]} 25. a3 {[%clk 0:01:58]}  Rb8 {[%clk 0:00:49]} 26. Qb4 {[%clk 0:01:58]}  Bc8 {[%clk 0:00:49]} 27. Na6 {[%clk 0:01:53]}  Qxb4 {[%clk 0:00:38]} 28. Nxb4 {[%clk 0:01:54]}  Bd7 {[%clk 0:00:33]} 29. Nxc6 {[%clk 0:01:54]}  Bxc6 {[%clk 0:00:34]} 30. Rxc6 {[%clk 0:01:55]}  b4 {[%clk 0:00:35]} 31. axb4 {[%clk 0:01:54]}  a3 {[%clk 0:00:35]} 32. b5 {[%clk 0:01:52]}  Ne6 {[%clk 0:00:33]} 33. Rhc1 {[%clk 0:01:47]}  Raa8 {[%clk 0:00:20]} 34. bxa3 {[%clk 0:01:45]}  Nhg7 {[%clk 0:00:20]} 35. Kb2 {[%clk 0:01:44]}  Nd8 {[%clk 0:00:20]} 36. R6c5 {[%clk 0:01:43]}  Nge6 {[%clk 0:00:19]} 37. Rxd5 {[%clk 0:01:44]}  Nb7 {[%clk 0:00:19]} 38. f4 {[%clk 0:01:36]}  Na5 {[%clk 0:00:13]} 39. f5 {[%clk 0:01:35]}  gxf5 {[%clk 0:00:12]} 40. Bxf5 {[%clk 0:01:36]}  Ng7 {[%clk 0:00:13]} 41. Bd3 {[%clk 0:01:35]}  Re8 {[%clk 0:00:14]} 42. e4 {[%clk 0:01:35]}  Nb7 {[%clk 0:00:14]} 43. Rc7 {[%clk 0:01:34]}  Na5 {[%clk 0:00:14]} 44. Rdd7 {[%clk 0:01:34]}  Rf8 {[%clk 0:00:15]} 45. d5 {[%clk 0:01:34]}  Ne8 {[%clk 0:00:10]} 46. Rc3 {[%clk 0:01:31]}  Ng7 {[%clk 0:00:10]} 47. Nd4 {[%clk 0:01:31]}  Rab8 {[%clk 0:00:09]} 48. Nc6 {[%clk 0:01:31]}  Ra8 {[%clk 0:00:09]} 49. Nxa5 {[%clk 0:01:30]}  Rxa5 {[%clk 0:00:09]} 50. Kb3 {[%clk 0:01:31]}  Rfa8 {[%clk 0:00:07]} 51. Kb2 {[%clk 0:01:30]}  Ne8 {[%clk 0:00:06]} 52. h5 {[%clk 0:01:29]}  h6 {[%clk 0:00:06]} 53. gxh6 {[%clk 0:01:29]}  Kh7 {[%clk 0:00:07]} 54. e5+ {[%clk 0:01:19]}  Kxh6 {[%clk 0:00:07]} 55. Rxf7 {[%clk 0:01:19]}  Kxh5 {[%clk 0:00:07]} 56. d6 {[%clk 0:01:20]}  Rd8 {[%clk 0:00:01]} 57. d7 {[%clk 0:01:12]} 1-0


[Site "https://www.chess.com"]

[Event "Titled Tuesday Blitz May 11 2021"]
[White "Borsuk, Konstantin"]
[Black "Atanasov, Anthony"]
[WhiteFideId "14113406"]
[BlackFideId "2623897"]
[WhiteElo "2363"]
[BlackElo "1889"]
[Result "1-0"]
[Round "02"]
[TimeControl "180+1"]
[Date "2021.05.11"]
[WhiteClock "0:02:17"]
[BlackClock "0:00:07"]

1. d4 {[%clk 0:03:00]}  Nf6 {[%clk 0:02:56]} 2. c4 {[%clk 0:03:01]}  g6 {[%clk 0:02:57]} 3. Nc3 {[%clk 0:03:01]}  Bg7 {[%clk 0:02:56]} 4. e4 {[%clk 0:03:01]}  d6 {[%clk 0:02:57]} 5. f3 {[%clk 0:03:01]}  O-O {[%clk 0:02:57]} 6. Be3 {[%clk 0:03:02]}  e5 {[%clk 0:02:56]} 7. d5 {[%clk 0:03:02]}  a5 {[%clk 0:02:55]} 8. Bd3 {[%clk 0:03:01]}  Nbd7 {[%clk 0:02:52]} 9. Nge2 {[%clk 0:03:01]}  Nh5 {[%clk 0:02:47]} 10. Qd2 {[%clk 0:03:01]}  f5 {[%clk 0:02:47]} 11. exf5 {[%clk 0:03:00]}  gxf5 {[%clk 0:02:47]} 12. O-O-O {[%clk 0:02:59]}  Nc5 {[%clk 0:02:26]} 13. Bc2 {[%clk 0:02:58]}  Nf6 {[%clk 0:02:19]} 14. h3 {[%clk 0:02:56]}  Bd7 {[%clk 0:02:11]} 15. g4 {[%clk 0:02:54]}  e4 {[%clk 0:01:53]} 16. gxf5 {[%clk 0:02:50]}  exf3 {[%clk 0:01:28]} 17. Nd4 {[%clk 0:02:48]}  Qe8 {[%clk 0:01:17]} 18. Ne6 {[%clk 0:02:47]}  Bxe6 {[%clk 0:01:17]} 19. dxe6 {[%clk 0:02:38]}  Qc6 {[%clk 0:00:57]} 20. Rhg1 {[%clk 0:02:34]}  Rae8 {[%clk 0:00:09]} 21. Rxg7+ {[%clk 0:02:29]}  Kxg7 {[%clk 0:00:09]} 22. Bh6+ {[%clk 0:02:29]}  Kh8 {[%clk 0:00:08]} 23. Qg5 {[%clk 0:02:30]}  Nxe6 {[%clk 0:00:01]} 24. fxe6 {[%clk 0:02:28]}  Nh5 {[%clk 0:00:02]} 25. Bxf8 {[%clk 0:02:27]}  Rxf8 {[%clk 0:00:02]} 26. e7 {[%clk 0:02:25]}  Rg8 {[%clk 0:00:01]} 27. Qxh5 {[%clk 0:02:25]}  Qe8 {[%clk 0:00:01]} 28. Qxe8 {[%clk 0:02:21]}  Rxe8 {[%clk 0:00:01]} 29. Rf1 {[%clk 0:02:20]}  c6 {[%clk 0:00:01]} 30. Rxf3 {[%clk 0:02:20]}  Rxe7 {[%clk 0:00:02]} 31. Ne4 {[%clk 0:02:20]}  d5 {[%clk 0:00:02]} 32. cxd5 {[%clk 0:02:20]}  cxd5 {[%clk 0:00:03]} 33. Nf6 {[%clk 0:02:19]}  Re1+ {[%clk 0:00:04]} 34. Kd2 {[%clk 0:02:19]}  Rh1 {[%clk 0:00:04]} 35. Nxd5 {[%clk 0:02:19]}  h5 {[%clk 0:00:04]} 36. a4 {[%clk 0:02:17]}  b6 {[%clk 0:00:03]} 37. Nxb6 {[%clk 0:02:17]}  h4 {[%clk 0:00:04]} 38. Nc4 {[%clk 0:02:17]}  Rh2+ {[%clk 0:00:04]} 39. Kc3 {[%clk 0:02:17]}  Kg7 {[%clk 0:00:05]} 40. Nxa5 {[%clk 0:02:16]}  Kh6 {[%clk 0:00:03]} 41. Nc4 {[%clk 0:02:17]}  Rg2 {[%clk 0:00:02]} 42. a5 {[%clk 0:02:17]}  Rg1 {[%clk 0:00:01]} 43. a6 {[%clk 0:02:17]}  Ra1 {[%clk 0:00:02]} 44. Na3 {[%clk 0:02:16]}  Re1 {[%clk 0:00:02]} 45. a7 {[%clk 0:02:16]}  Re8 {[%clk 0:00:02]} 46. Be4 {[%clk 0:02:16]}  Rc8+ {[%clk 0:00:02]} 47. Nc4 {[%clk 0:02:16]}  Rd8 {[%clk 0:00:02]} 48. a8=Q {[%clk 0:02:16]}  Rxa8 {[%clk 0:00:01]} 49. Bxa8 {[%clk 0:02:17]}  Kg5 {[%clk 0:00:01]} 50. b4 {[%clk 0:02:16]}  Kh6 {[%clk 0:00:02]} 51. b5 {[%clk 0:02:16]}  Kg5 {[%clk 0:00:03]} 52. b6 {[%clk 0:02:17]}  Kh6 {[%clk 0:00:04]} 53. b7 {[%clk 0:02:17]}  Kg5 {[%clk 0:00:05]} 54. b8=Q {[%clk 0:02:17]}  Kh6 {[%clk 0:00:06]} 55. Qh8+ {[%clk 0:02:17]}  Kg5 {[%clk 0:00:07]} 56. Qg7+ {[%clk 0:02:17]}  Kh5 {[%clk 0:00:07]} 57. Rf5# {[%clk 0:02:17]} 1-0


[Site "https://www.chess.com"]

[Event "Titled Tuesday Blitz May 11 2021"]
[White "Budrewicz, Krzysztof"]
[Black "Nguyen, Ngoc Truong Son"]
[WhiteFideId "1127950"]
[BlackFideId "12401110"]
[WhiteElo "2276"]
[BlackElo "2596"]
[Result "1/2-1/2"]
[Round "02"]
[TimeControl "180+1"]
[Date "2021.05.11"]
[WhiteClock "0:00:09"]
[BlackClock "0:00:07"]

1. d4 {[%clk 0:03:00]}  Nf6 {[%clk 0:02:53]} 2. c4 {[%clk 0:03:00]}  c5 {[%clk 0:02:53]} 3. d5 {[%clk 0:03:00]}  e6 {[%clk 0:02:54]} 4. Nc3 {[%clk 0:03:00]}  exd5 {[%clk 0:02:55]} 5. cxd5 {[%clk 0:03:00]}  d6 {[%clk 0:02:55]} 6. Nf3 {[%clk 0:03:00]}  g6 {[%clk 0:02:55]} 7. Bf4 {[%clk 0:03:01]}  a6 {[%clk 0:02:55]} 8. a4 {[%clk 0:03:00]}  Bg7 {[%clk 0:02:55]} 9. e3 {[%clk 0:03:00]}  O-O {[%clk 0:02:54]} 10. Nd2 {[%clk 0:02:59]}  Nh5 {[%clk 0:02:47]} 11. Bg3 {[%clk 0:02:59]}  Nxg3 {[%clk 0:02:43]} 12. hxg3 {[%clk 0:02:59]}  Nd7 {[%clk 0:02:43]} 13. Be2 {[%clk 0:02:58]}  Rb8 {[%clk 0:02:36]} 14. O-O {[%clk 0:02:57]}  Re8 {[%clk 0:02:33]} 15. a5 {[%clk 0:02:54]}  h5 {[%clk 0:02:23]} 16. Nc4 {[%clk 0:02:51]}  Ne5 {[%clk 0:02:22]} 17. Nb6 {[%clk 0:02:47]}  Bg4 {[%clk 0:02:12]} 18. Ra4 {[%clk 0:02:44]}  Bxe2 {[%clk 0:02:03]} 19. Qxe2 {[%clk 0:02:38]}  f5 {[%clk 0:02:00]} 20. Rd1 {[%clk 0:02:34]}  Re7 {[%clk 0:01:49]} 21. Nc4 {[%clk 0:02:33]}  Nxc4 {[%clk 0:01:41]} 22. Qxc4 {[%clk 0:02:33]}  Qd7 {[%clk 0:01:30]} 23. Ra3 {[%clk 0:02:28]}  Rbe8 {[%clk 0:01:20]} 24. Na4 {[%clk 0:02:27]}  Re4 {[%clk 0:01:19]} 25. Qc2 {[%clk 0:02:26]}  Rb4 {[%clk 0:01:16]} 26. b3 {[%clk 0:02:22]}  h4 {[%clk 0:01:03]} 27. Nb6 {[%clk 0:02:17]}  Qe7 {[%clk 0:01:02]} 28. gxh4 {[%clk 0:02:13]}  Rxh4 {[%clk 0:01:03]} 29. Ra4 {[%clk 0:02:09]}  Rh5 {[%clk 0:00:58]} 30. g3 {[%clk 0:02:01]}  Be5 {[%clk 0:00:55]} 31. Qe2 {[%clk 0:01:57]}  Kg7 {[%clk 0:00:52]} 32. Qf3 {[%clk 0:01:57]}  Reh8 {[%clk 0:00:51]} 33. Nc4 {[%clk 0:01:54]}  Bf6 {[%clk 0:00:46]} 34. Ra2 {[%clk 0:01:45]}  Rh2 {[%clk 0:00:26]} 35. Rad2 {[%clk 0:01:41]}  Be5 {[%clk 0:00:19]} 36. Kf1 {[%clk 0:01:40]}  Qf6 {[%clk 0:00:18]} 37. Ke2 {[%clk 0:01:37]}  R8h3 {[%clk 0:00:17]} 38. Rg1 {[%clk 0:01:32]}  g5 {[%clk 0:00:16]} 39. Kd1 {[%clk 0:01:25]}  g4 {[%clk 0:00:15]} 40. Qe2 {[%clk 0:01:10]}  Bxg3 {[%clk 0:00:15]} 41. Qf1 {[%clk 0:01:01]}  Qa1+ {[%clk 0:00:12]} 42. Kc2 {[%clk 0:00:56]}  Qxf1 {[%clk 0:00:10]} 43. Rxf1 {[%clk 0:00:56]}  Be5 {[%clk 0:00:10]} 44. Nxe5 {[%clk 0:00:54]}  dxe5 {[%clk 0:00:11]} 45. d6 {[%clk 0:00:54]}  Rh8 {[%clk 0:00:12]} 46. Kd3 {[%clk 0:00:49]}  Kf6 {[%clk 0:00:10]} 47. Kc4 {[%clk 0:00:49]}  Ke6 {[%clk 0:00:09]} 48. Kxc5 {[%clk 0:00:44]}  g3 {[%clk 0:00:09]} 49. Kb6 {[%clk 0:00:25]}  R8h7 {[%clk 0:00:08]} 50. d7 {[%clk 0:00:17]}  Rxd7 {[%clk 0:00:08]} 51. Rxd7 {[%clk 0:00:17]}  Kxd7 {[%clk 0:00:07]} 52. fxg3 {[%clk 0:00:17]}  Rb2 {[%clk 0:00:06]} 53. Kxb7 {[%clk 0:00:15]}  Rxb3+ {[%clk 0:00:07]} 54. Kxa6 {[%clk 0:00:16]}  Ke6 {[%clk 0:00:07]} 55. Re1 {[%clk 0:00:15]}  e4 {[%clk 0:00:07]} 56. Ka7 {[%clk 0:00:15]}  Kf6 {[%clk 0:00:07]} 57. a6 {[%clk 0:00:13]}  Kg5 {[%clk 0:00:08]} 58. Ka8 {[%clk 0:00:12]}  Kg4 {[%clk 0:00:08]} 59. a7 {[%clk 0:00:13]}  Kxg3 {[%clk 0:00:08]} 60. Rf1 {[%clk 0:00:13]}  Rxe3 {[%clk 0:00:08]} 61. Rxf5 {[%clk 0:00:12]}  Rb3 {[%clk 0:00:08]} 62. Rf7 {[%clk 0:00:12]}  e3 {[%clk 0:00:07]} 63. Re7 {[%clk 0:00:12]}  Kf2 {[%clk 0:00:07]} 64. Rxe3 {[%clk 0:00:09]}  Kxe3 {[%clk 0:00:07]} 1/2-1/2


[Site "https://www.chess.com"]

[Event "Titled Tuesday Blitz May 11 2021"]
[White "Czopor, Maciej"]
[Black "Tsydypov, Zhamsaran"]
[WhiteFideId "21805431"]
[BlackFideId "4108566"]
[WhiteElo "1939"]
[BlackElo "2645"]
[Result "0-1"]
[Round "02"]
[TimeControl "180+1"]
[Date "2021.05.11"]
[WhiteClock "0:00:01"]
[BlackClock "0:01:25"]

1. e4 {[%clk 0:02:44]}  c5 {[%clk 0:02:57]} 2. Nf3 {[%clk 0:02:44]}  Nc6 {[%clk 0:02:57]} 3. d4 {[%clk 0:02:45]}  cxd4 {[%clk 0:02:57]} 4. Nxd4 {[%clk 0:02:46]}  e5 {[%clk 0:02:57]} 5. Nb5 {[%clk 0:02:46]}  d6 {[%clk 0:02:57]} 6. N1c3 {[%clk 0:02:45]}  a6 {[%clk 0:02:57]} 7. Na3 {[%clk 0:02:45]}  Be6 {[%clk 0:02:57]} 8. Nc4 {[%clk 0:02:45]}  b5 {[%clk 0:02:53]} 9. Ne3 {[%clk 0:02:45]}  Nf6 {[%clk 0:02:53]} 10. Bd3 {[%clk 0:02:11]}  Be7 {[%clk 0:02:53]} 11. O-O {[%clk 0:02:10]}  O-O {[%clk 0:02:53]} 12. a4 {[%clk 0:02:07]}  bxa4 {[%clk 0:02:52]} 13. Rxa4 {[%clk 0:02:06]}  a5 {[%clk 0:02:49]} 14. Ncd5 {[%clk 0:02:02]}  Nd7 {[%clk 0:02:44]} 15. Bb5 {[%clk 0:01:53]}  Nd4 {[%clk 0:02:42]} 16. Bxd7 {[%clk 0:01:48]}  Bxd7 {[%clk 0:02:41]} 17. Ra3 {[%clk 0:01:36]}  Bb5 {[%clk 0:02:32]} 18. c4 {[%clk 0:01:25]}  Bc6 {[%clk 0:02:32]} 19. Nf5 {[%clk 0:01:25]}  Bxd5 {[%clk 0:02:24]} 20. Nxe7+ {[%clk 0:01:15]}  Qxe7 {[%clk 0:02:24]} 21. cxd5 {[%clk 0:01:14]}  Qb7 {[%clk 0:02:22]} 22. Qg4 {[%clk 0:00:53]}  f5 {[%clk 0:02:19]} 23. exf5 {[%clk 0:00:49]}  Qxd5 {[%clk 0:02:18]} 24. Rd1 {[%clk 0:00:28]}  Qf7 {[%clk 0:02:16]} 25. f4 {[%clk 0:00:14]}  Nxf5 {[%clk 0:02:11]} 26. fxe5 {[%clk 0:00:14]}  dxe5 {[%clk 0:02:11]} 27. Rf3 {[%clk 0:00:14]}  Qe6 {[%clk 0:01:57]} 28. Qe4 {[%clk 0:00:11]}  Rac8 {[%clk 0:01:48]} 29. Rdf1 {[%clk 0:00:10]}  g6 {[%clk 0:01:44]} 30. g4 {[%clk 0:00:06]}  Nd4 {[%clk 0:01:34]} 31. Rxf8+ {[%clk 0:00:06]}  Rxf8 {[%clk 0:01:35]} 32. Rxf8+ {[%clk 0:00:07]}  Kxf8 {[%clk 0:01:35]} 33. Bh6+ {[%clk 0:00:07]}  Ke7 {[%clk 0:01:35]} 34. Qb7+ {[%clk 0:00:07]}  Qd7 {[%clk 0:01:28]} 35. Bg5+ {[%clk 0:00:06]}  Ke8 {[%clk 0:01:26]} 36. Qb8+ {[%clk 0:00:02]}  Kf7 {[%clk 0:01:25]} 37. Qxe5 {[%clk 0:00:01]}  Nf3+ {[%clk 0:01:25]} 0-1


[Site "https://www.chess.com"]

[Event "Titled Tuesday Blitz May 11 2021"]
[White "Danielian, Vardan"]
[Black "Lobanov, Sergei"]
[WhiteFideId "13301594"]
[BlackFideId "24183750"]
[WhiteElo "2530"]
[BlackElo "2392"]
[Result "0-1"]
[Round "02"]
[TimeControl "180+1"]
[Date "2021.05.11"]
[WhiteClock "0:00:24"]
[BlackClock "0:00:09"]

1. Nf3 {[%clk 0:02:59]}  d5 {[%clk 0:02:59]} 2. g3 {[%clk 0:02:58]}  Nd7 {[%clk 0:02:58]} 3. Bg2 {[%clk 0:02:54]}  e5 {[%clk 0:02:58]} 4. O-O {[%clk 0:02:54]}  Ngf6 {[%clk 0:02:58]} 5. c4 {[%clk 0:02:52]}  dxc4 {[%clk 0:02:35]} 6. Na3 {[%clk 0:02:44]}  e4 {[%clk 0:02:35]} 7. Ng5 {[%clk 0:02:28]}  Nc5 {[%clk 0:02:28]} 8. Nxc4 {[%clk 0:02:28]}  h6 {[%clk 0:02:13]} 9. Nh3 {[%clk 0:02:14]}  Be6 {[%clk 0:02:04]} 10. b3 {[%clk 0:02:09]}  g5 {[%clk 0:01:48]} 11. d4 {[%clk 0:01:49]}  exd3 {[%clk 0:01:41]} 12. exd3 {[%clk 0:01:44]}  Qxd3 {[%clk 0:01:38]} 13. Bb2 {[%clk 0:01:32]}  Qxd1 {[%clk 0:01:20]} 14. Raxd1 {[%clk 0:01:26]}  Be7 {[%clk 0:01:20]} 15. f4 {[%clk 0:01:17]}  g4 {[%clk 0:01:02]} 16. Nf2 {[%clk 0:00:56]}  O-O {[%clk 0:01:01]} 17. Nd3 {[%clk 0:00:56]}  Nxd3 {[%clk 0:00:52]} 18. Rxd3 {[%clk 0:00:55]}  c6 {[%clk 0:00:52]} 19. Rfd1 {[%clk 0:00:50]}  Rfd8 {[%clk 0:00:47]} 20. Na5 {[%clk 0:00:50]}  Rxd3 {[%clk 0:00:38]} 21. Rxd3 {[%clk 0:00:49]}  Nd5 {[%clk 0:00:20]} 22. Nxb7 {[%clk 0:00:47]}  a5 {[%clk 0:00:18]} 23. Bd4 {[%clk 0:00:42]}  a4 {[%clk 0:00:16]} 24. Nc5 {[%clk 0:00:40]}  Bf5 {[%clk 0:00:14]} 25. Re3 {[%clk 0:00:35]}  axb3 {[%clk 0:00:10]} 26. Bxd5 {[%clk 0:00:33]}  Bxc5 {[%clk 0:00:08]} 27. Bxc5 {[%clk 0:00:26]}  b2 {[%clk 0:00:08]} 28. Re1 {[%clk 0:00:25]}  cxd5 {[%clk 0:00:08]} 29. Bd4 {[%clk 0:00:21]}  b1=Q {[%clk 0:00:08]} 30. Rxb1 {[%clk 0:00:22]}  Bxb1 {[%clk 0:00:09]} 31. Kf2 {[%clk 0:00:23]}  Rxa2+ {[%clk 0:00:08]} 32. Ke3 {[%clk 0:00:24]}  Be4 {[%clk 0:00:09]} 0-1


[Site "https://www.chess.com"]

[Event "Titled Tuesday Blitz May 11 2021"]
[White "Debashis, Das"]
[Black "Nitin, S."]
[WhiteFideId "5024854"]
[BlackFideId "5018277"]
[WhiteElo "2470"]
[BlackElo "2431"]
[Result "1/2-1/2"]
[Round "02"]
[TimeControl "180+1"]
[Date "2021.05.11"]
[WhiteClock "0:00:13"]
[BlackClock "0:00:15"]

1. e4 {[%clk 0:03:00]}  c5 {[%clk 0:02:58]} 2. Nf3 {[%clk 0:03:01]}  d6 {[%clk 0:02:57]} 3. d4 {[%clk 0:03:01]}  cxd4 {[%clk 0:02:58]} 4. Nxd4 {[%clk 0:03:02]}  Nf6 {[%clk 0:02:58]} 5. Nc3 {[%clk 0:03:02]}  e6 {[%clk 0:02:59]} 6. Be2 {[%clk 0:03:00]}  Be7 {[%clk 0:02:58]} 7. O-O {[%clk 0:03:00]}  O-O {[%clk 0:02:58]} 8. Be3 {[%clk 0:03:01]}  Nc6 {[%clk 0:02:59]} 9. f4 {[%clk 0:02:58]}  Bd7 {[%clk 0:02:54]} 10. Kh1 {[%clk 0:02:46]}  Qb8 {[%clk 0:02:41]} 11. a4 {[%clk 0:02:37]}  Nxd4 {[%clk 0:02:40]} 12. Qxd4 {[%clk 0:02:37]}  e5 {[%clk 0:02:35]} 13. Qd3 {[%clk 0:02:36]}  Bc6 {[%clk 0:02:35]} 14. fxe5 {[%clk 0:02:08]}  dxe5 {[%clk 0:02:35]} 15. Bg5 {[%clk 0:02:08]}  Qd8 {[%clk 0:02:18]} 16. Qc4 {[%clk 0:01:04]}  Rc8 {[%clk 0:02:05]} 17. Rad1 {[%clk 0:00:57]}  Nd7 {[%clk 0:02:05]} 18. Bxe7 {[%clk 0:00:49]}  Qxe7 {[%clk 0:02:06]} 19. Bg4 {[%clk 0:00:50]}  Rcd8 {[%clk 0:01:36]} 20. Bxd7 {[%clk 0:00:42]}  Rxd7 {[%clk 0:01:35]} 21. Rxd7 {[%clk 0:00:40]}  Qxd7 {[%clk 0:01:36]} 22. Rd1 {[%clk 0:00:40]}  Qg4 {[%clk 0:01:33]} 23. b4 {[%clk 0:00:38]}  h5 {[%clk 0:01:14]} 24. b5 {[%clk 0:00:38]}  Bd7 {[%clk 0:01:15]} 25. h3 {[%clk 0:00:38]}  Qe6 {[%clk 0:01:11]} 26. Qxe6 {[%clk 0:00:32]}  Bxe6 {[%clk 0:01:12]} 27. Nd5 {[%clk 0:00:33]}  Kh7 {[%clk 0:00:47]} 28. Nc7 {[%clk 0:00:33]}  Bc8 {[%clk 0:00:29]} 29. Rd5 {[%clk 0:00:28]}  f5 {[%clk 0:00:26]} 30. Rxe5 {[%clk 0:00:24]}  fxe4 {[%clk 0:00:26]} 31. Rxe4 {[%clk 0:00:22]}  Rf1+ {[%clk 0:00:26]} 32. Kh2 {[%clk 0:00:22]}  Bf5 {[%clk 0:00:26]} 33. Re2 {[%clk 0:00:18]}  Ra1 {[%clk 0:00:24]} 34. Nd5 {[%clk 0:00:16]}  Rxa4 {[%clk 0:00:22]} 35. Re7 {[%clk 0:00:16]}  Ra2 {[%clk 0:00:16]} 36. Ne3 {[%clk 0:00:14]}  Bxc2 {[%clk 0:00:15]} 37. Nxc2 {[%clk 0:00:12]}  Rxc2 {[%clk 0:00:15]} 38. Rxb7 {[%clk 0:00:13]}  Rb2 {[%clk 0:00:16]} 39. Rxa7 {[%clk 0:00:13]}  Rxb5 {[%clk 0:00:15]} 1/2-1/2


[Site "https://www.chess.com"]

[Event "Titled Tuesday Blitz May 11 2021"]
[White "Demchenko, Anton"]
[Black "Potapova, Margarita"]
[WhiteFideId "4160258"]
[BlackFideId "14126869"]
[WhiteElo "2593"]
[BlackElo "2229"]
[Result "1/2-1/2"]
[Round "02"]
[TimeControl "180+1"]
[Date "2021.05.11"]
[WhiteClock "0:00:10"]
[BlackClock "0:00:06"]

1. e4 {[%clk 0:03:00]}  c5 {[%clk 0:02:59]} 2. Nf3 {[%clk 0:03:01]}  d6 {[%clk 0:03:00]} 3. Bb5+ {[%clk 0:03:01]}  Nd7 {[%clk 0:03:00]} 4. d4 {[%clk 0:03:01]}  cxd4 {[%clk 0:03:01]} 5. Qxd4 {[%clk 0:03:01]}  a6 {[%clk 0:03:01]} 6. Be2 {[%clk 0:03:02]}  Ngf6 {[%clk 0:02:59]} 7. O-O {[%clk 0:03:00]}  g6 {[%clk 0:02:59]} 8. Rd1 {[%clk 0:02:58]}  Bg7 {[%clk 0:03:00]} 9. Nc3 {[%clk 0:02:54]}  O-O {[%clk 0:03:00]} 10. e5 {[%clk 0:02:55]}  Ne8 {[%clk 0:02:57]} 11. Qh4 {[%clk 0:02:54]}  Nxe5 {[%clk 0:02:41]} 12. Nxe5 {[%clk 0:02:51]}  Bxe5 {[%clk 0:02:40]} 13. Nd5 {[%clk 0:02:41]}  Nf6 {[%clk 0:02:07]} 14. f4 {[%clk 0:02:39]}  Nxd5 {[%clk 0:02:07]} 15. fxe5 {[%clk 0:02:39]}  Qb6+ {[%clk 0:02:08]} 16. Kh1 {[%clk 0:02:38]}  Ne3 {[%clk 0:02:08]} 17. Qf2 {[%clk 0:02:30]}  Nc4 {[%clk 0:01:58]} 18. Qxb6 {[%clk 0:02:27]}  Nxb6 {[%clk 0:01:59]} 19. exd6 {[%clk 0:02:28]}  exd6 {[%clk 0:01:58]} 20. Rxd6 {[%clk 0:02:28]}  Re8 {[%clk 0:01:59]} 21. Bh6 {[%clk 0:02:15]}  Bf5 {[%clk 0:01:38]} 22. Bf1 {[%clk 0:02:09]}  Na4 {[%clk 0:01:28]} 23. b3 {[%clk 0:02:07]}  Nc5 {[%clk 0:01:28]} 24. c4 {[%clk 0:02:01]}  Ne4 {[%clk 0:01:28]} 25. Rd4 {[%clk 0:01:57]}  Rad8 {[%clk 0:01:26]} 26. Rxd8 {[%clk 0:01:55]}  Rxd8 {[%clk 0:01:27]} 27. Re1 {[%clk 0:01:51]}  g5 {[%clk 0:01:08]} 28. h4 {[%clk 0:01:21]}  f6 {[%clk 0:01:06]} 29. Kg1 {[%clk 0:01:11]}  Kf7 {[%clk 0:01:00]} 30. g4 {[%clk 0:01:11]}  Bg6 {[%clk 0:00:51]} 31. Bg2 {[%clk 0:01:09]}  Rd4 {[%clk 0:00:38]} 32. a4 {[%clk 0:00:50]}  a5 {[%clk 0:00:24]} 33. h5 {[%clk 0:00:34]}  Nc3 {[%clk 0:00:23]} 34. Re3 {[%clk 0:00:34]}  Bd3 {[%clk 0:00:21]} 35. Kh2 {[%clk 0:00:28]}  Ne4 {[%clk 0:00:18]} 36. Bf3 {[%clk 0:00:24]}  Bc2 {[%clk 0:00:09]} 37. Kg1 {[%clk 0:00:24]}  f5 {[%clk 0:00:08]} 38. gxf5 {[%clk 0:00:23]}  Kf6 {[%clk 0:00:08]} 39. Bf8 {[%clk 0:00:20]}  Kxf5 {[%clk 0:00:08]} 40. h6 {[%clk 0:00:15]}  Kf4 {[%clk 0:00:09]} 41. Bxe4 {[%clk 0:00:13]}  Bxe4 {[%clk 0:00:05]} 42. Re1 {[%clk 0:00:13]}  Rd2 {[%clk 0:00:05]} 43. Bg7 {[%clk 0:00:11]}  Bf3 {[%clk 0:00:03]} 44. Be5+ {[%clk 0:00:10]}  Kg4 {[%clk 0:00:04]} 45. Re3 {[%clk 0:00:09]}  Rd1+ {[%clk 0:00:03]} 46. Kf2 {[%clk 0:00:09]}  Rd2+ {[%clk 0:00:04]} 47. Ke1 {[%clk 0:00:10]}  Rd1+ {[%clk 0:00:04]} 48. Kf2 {[%clk 0:00:10]}  Rd2+ {[%clk 0:00:05]} 49. Kf1 {[%clk 0:00:11]}  Rd1+ {[%clk 0:00:06]} 50. Kf2 {[%clk 0:00:10]} 1/2-1/2


[Site "https://www.chess.com"]